[Event "8. Arber-Schachopen 2019"]
[Site "Bodenmais"]
[Date "2019.08.01"]
[Round "6.14"]
[White "Hoffmann, Sebastian"]
[Black "Eggeling, Philipp"]
[Result "1/2-1/2"]
[ECO "B13"]
[WhiteElo "2199"]
[BlackElo "1869"]
[Annotator "NA"]
[PlyCount "98"]
[EventDate "2019.07.27"]
[EventCountry "GER"]
[SourceTitle "playchess.com"]
[Source "ChessBase"]
[SourceQuality "1"]
[TimeControl "40/5400+30:1800+30"]

1. e4 {[%emt 0:00:00]} c6 {[%emt 0:00:00]} 2. d4 {[%emt 0:00:00]} d5 {[%emt 0:00:00]} 3. exd5 {[%emt 0:00:00]} cxd5 {[%emt 0:00:00]} 4. Bf4 {[%emt 0:00:00]} Bf5 {[%emt 0:00:27]} 5. c3 {[%emt 0:00:00]} Nd7 {[%emt 0:00:45]} 6. Qb3 {[%emt 0:06:21]} Qb6 {[%emt 0:00:12]} 7. Bb5 {[%emt 0:04:47]} Ngf6 {[%emt 0:00:44]} 8. Nf3 {[%emt 0:08:24]} a6 {[%emt 0:00:09]} 9. Be2 {[%emt 0:09:31]} Qxb3 {[%emt 0:00:21]} 10. axb3 {[%emt 0:00:42]} e6 {[%emt 0:02:15]} 11. Nbd2 {[%emt 0:03:03]} Be7 {[%emt 0:00:29]} 12. h3 {[%emt 0:06:22]} h6 {[%emt 0:00:22]} 13. O-O {[%emt 0:02:04]} O-O {[%emt 0:00:30]} 14. Rfc1 {[%emt 0:03:25]} Rfc8 {[%emt 0:07:28]} 15. Ne1 {[%emt 0:03:11]} Ne4 {[%emt 0:01:38]} 16. g4 {[%emt 0:02:14]} Nxd2 {[%emt 0:02:37]} 17. Bxd2 {[%emt 0:00:22]} Bg6 {[%emt 0:00:38]} 18. Nd3 {[%emt 0:01:56]} Bd6 {[%emt 0:07:01]} 19. Kf1 {[%emt 0:08:39]} Nf6 {[%emt 0:07:44]} 20. f3 {[%emt 0:01:26]} Rd8 {[%emt 0:17:50]} 21. b4 {[%emt 0:03:31]} Bxd3 {[%emt 0:00:52]} 22. Bxd3 {[%emt 0:00:03]} Bc7 {[%emt 0:05:52]} 23. Ra2 {[%emt 0:01:06]} Bb6 {[%emt 0:00:20]} 24. Rca1 {[%emt 0:03:38]} Rac8 {[%emt 0:00:26]} 25. Ke2 {[%emt 0:03:50]} Ne8 {[%emt 0:00:28]} 26. h4 {[%emt 0:03:06]} Nd6 {[%emt 0:00:00]} 27. Rh1 {[%emt 0:01:53]} Re8 {[%emt 0:01:58]} 28. Kf1 {[%emt 0:09:14]} Nc4 {[%emt 0:00:51]} 29. Bf4 {[%emt 0:02:39]} Bc7 {[%emt 0:00:49]} 30. Bxc7 {[%emt 0:02:43]} Rxc7 {[%emt 0:00:14]} 31. Bxc4 {[%emt 0:00:14]} Rxc4 {[%emt 0:00:17]} 32. f4 {[%emt 0:00:49]} f6 {[%emt 0:00:13]} 33. Ra5 {[%emt 0:00:57]} e5 {[%emt 0:05:09]} 34. fxe5 {[%emt 0:04:38]} fxe5 {[%emt 0:04:57]} 35. Rh3 {[%emt 0:03:44]} exd4 {[%emt 0:00:22]} 36. Rxd5 {[%emt 0:00:36]} dxc3 {[%emt 0:00:30]} 37. bxc3 {[%emt 0:00:38]} Rf4+ 38. Kg2 Rxg4+ {[%emt 0:00:44]} 39. Kf3 {[%emt 0:00:03]} Ree4 {[%emt 0:01:46]} 40. h5 {[%emt 0:02:52]} Rgf4+ {[%emt 0:01:30]} 41. Kg3 {[%emt 0:30:19]} Rf7 {[%emt 0:30:44]} 42. Rc5 {[%emt 0:00:00]} Re3+ {[%emt 0:00:00]} 43. Kg4 {[%emt 0:00:00]} Re4+ {[%emt 0:00:00]} 44. Kg3 {[%emt 0:00:00]} Re3+ {[%emt 0:00:00]} 45. Kg4 {[%emt 0:00:00]} Rxh3 {[%emt 0:00:00]} 46. Kxh3 {[%emt 0:00:00]} Kh7 {[%emt 0:00:00]} 47. Kg4 Rf6 48. Rc7 Rc6 49. Rxb7 Rxc3 1/2-1/2

[Event "8. Arber-Schachopen 2019"]
[Site "Bodenmais"]
[Date "2019.08.01"]
[Round "6.15"]
[White "Neiss, Josef Martin"]
[Black "Gruettner, Ralf"]
[Result "1/2-1/2"]
[ECO "A04"]
[WhiteElo "2041"]
[BlackElo "2118"]
[Annotator "NA"]
[PlyCount "62"]
[EventDate "2019.07.27"]
[EventCountry "GER"]
[SourceTitle "playchess.com"]
[Source "ChessBase"]
[SourceQuality "1"]
[TimeControl "40/5400+30:1800+30"]

1. Nf3 {[%emt 0:03:36]} g6 {[%emt 0:00:00]} 2. e4 {[%emt 0:00:20]} Bg7 {[%emt 0:00:00]} 3. d4 {[%emt 0:00:14]} c5 {[%emt 0:02:22]} 4. c3 {[%emt 0:02:51]} cxd4 {[%emt 0:00:30]} 5. cxd4 {[%emt 0:00:57]} d6 {[%emt 0:01:34]} 6. Bb5+ {[%emt 0:01:58]} Bd7 {[%emt 0:00:36]} 7. Bxd7+ {[%emt 0:00:17]} Qxd7 {[%emt 0:00:37]} 8. O-O {[%emt 0:00:55]} Nf6 {[%emt 0:01:17]} 9. Nc3 {[%emt 0:01:18]} O-O {[%emt 0:00:31]} 10. Qe2 {[%emt 0:03:10]} Nc6 {[%emt 0:11:34]} 11. h3 {[%emt 0:04:49]} Rac8 {[%emt 0:04:44]} 12. Be3 {[%emt 0:06:21]} d5 {[%emt 0:07:12]} 13. e5 {[%emt 0:08:22]} Ne4 {[%emt 0:13:53]} 14. Rfc1 {[%emt 0:11:13]} e6 {[%emt 0:21:07]} 15. Bd2 {[%emt 0:07:41]} Nxc3 {[%emt 0:02:31]} 16. Rxc3 {[%emt 0:01:09]} Rfe8 {[%emt 0:08:04]} 17. Rac1 {[%emt 0:05:18]} a6 {[%emt 0:00:47]} 18. Kf1 {[%emt 0:07:08]} Bf8 {[%emt 0:04:33]} 19. R3c2 {[%emt 0:01:11]} Na7 {[%emt 0:02:16]} 20. Qd3 {[%emt 0:04:03]} Rxc2 {[%emt 0:00:28]} 21. Rxc2 {[%emt 0:00:03]} Rc8 {[%emt 0:00:42]} 22. Rxc8 {[%emt 0:00:41]} Qxc8 {[%emt 0:00:02]} 23. b3 {[%emt 0:00:24]} Qc6 {[%emt 0:00:55]} 24. Ke2 {[%emt 0:02:34]} Qb6 {[%emt 0:01:46]} 25. Bc3 {[%emt 0:02:42]} Nc6 {[%emt 0:01:16]} 26. Ne1 {[%emt 0:04:24]} Be7 {[%emt 0:04:25]} 27. Nc2 {[%emt 0:00:19]} Kg7 {[%emt 0:00:18]} 28. Bd2 {[%emt 0:01:08]} Qc7 {[%emt 0:04:05]} 29. Kd1 {[%emt 0:02:25]} Qb6 {[%emt 0:00:18]} 30. Ke2 {[%emt 0:00:17]} Qc7 {[%emt 0:02:49]} 31. Kd1 {[%emt 0:00:07]} Qb6 {[%emt 0:00:36]} 1/2-1/2

[Event "8. Arber-Schachopen 2019"]
[Site "Bodenmais"]
[Date "2019.08.01"]
[Round "6.16"]
[White "Sergeev, Vladimir"]
[Black "Reuter, Roland"]
[Result "1-0"]
[ECO "D37"]
[WhiteElo "2415"]
[BlackElo "1930"]
[Annotator "NA"]
[PlyCount "69"]
[EventDate "2019.07.27"]
[EventCountry "GER"]
[SourceTitle "playchess.com"]
[Source "ChessBase"]
[SourceQuality "1"]
[TimeControl "40/5400+30:1800+30"]

1. c4 {[%emt 0:00:00]} Nf6 {[%emt 0:00:00]} 2. Nc3 {[%emt 0:00:00]} e6 {[%emt 0:00:15]} 3. Nf3 {[%emt 0:00:03]} d5 {[%emt 0:00:19]} 4. d4 {[%emt 0:00:18]} Be7 {[%emt 0:00:17]} 5. Bf4 {[%emt 0:00:20]} c6 {[%emt 0:01:00]} 6. e3 {[%emt 0:00:07]} O-O {[%emt 0:00:21]} 7. h3 {[%emt 0:00:22]} Nbd7 {[%emt 0:00:40]} 8. Qc2 {[%emt 0:01:14]} dxc4 {[%emt 0:00:41]} 9. Bxc4 {[%emt 0:00:07]} b5 {[%emt 0:00:10]} 10. Bd3 {[%emt 0:00:10]} Bb7 {[%emt 0:00:24]} 11. O-O {[%emt 0:00:13]} a5 {[%emt 0:02:08]} 12. e4 {[%emt 0:01:37]} g6 {[%emt 0:01:18]} 13. Bh6 {[%emt 0:01:38]} Re8 {[%emt 0:00:15]} 14. e5 {[%emt 0:00:13]} Nd5 {[%emt 0:00:38]} 15. Nxd5 {[%emt 0:00:09]} cxd5 {[%emt 0:01:44]} 16. Bxb5 {[%emt 0:00:15]} Ba6 {[%emt 0:01:21]} 17. Bxa6 {[%emt 0:01:06]} Rxa6 {[%emt 0:00:05]} 18. Rfc1 {[%emt 0:00:20]} Qb8 {[%emt 0:04:53]} 19. Qa4 {[%emt 0:03:04]} Ra7 {[%emt 0:02:00]} 20. Rc2 {[%emt 0:02:00]} Rc8 {[%emt 0:01:57]} 21. Rac1 {[%emt 0:00:26]} Rxc2 {[%emt 0:00:35]} 22. Rxc2 {[%emt 0:00:40]} f6 {[%emt 0:03:31]} 23. Qc6 {[%emt 0:08:04]} Kf7 {[%emt 0:00:47]} 24. exf6 {[%emt 0:00:56]} Bxf6 {[%emt 0:00:28]} 25. Re2 {[%emt 0:06:37]} Qe8 {[%emt 0:00:53]} 26. h4 {[%emt 0:02:58]} Qe7 {[%emt 0:01:25]} 27. Bg5 {[%emt 0:01:31]} Nf8 {[%emt 0:02:04]} 28. Ne5+ {[%emt 0:05:22]} Kg7 {[%emt 0:00:27]} 29. Bxf6+ {[%emt 0:02:07]} Qxf6 {[%emt 0:01:14]} 30. g3 {[%emt 0:00:39]} Qe7 {[%emt 0:02:19]} 31. Qc3 {[%emt 0:03:06]} Qd6 {[%emt 0:03:48]} 32. Qe3 {[%emt 0:03:33]} Ra6 {[%emt 0:04:30]} 33. Ng4 {[%emt 0:02:15]} Nd7 {[%emt 0:01:07]} 34. h5 {[%emt 0:00:38]} Qe7 {[%emt 0:03:32]} 35. Qh6+ {[%emt 0:00:45]} 1-0

[Event "8. Arber-Schachopen 2019"]
[Site "Bodenmais"]
[Date "2019.08.01"]
[Round "6.17"]
[White "Zepke, Armin"]
[Black "Navarro Gevers, Daniel"]
[Result "1/2-1/2"]
[ECO "A45"]
[WhiteElo "2122"]
[BlackElo "1813"]
[Annotator "NA"]
[PlyCount "34"]
[EventDate "2019.07.27"]
[EventCountry "GER"]
[SourceTitle "playchess.com"]
[Source "ChessBase"]
[SourceQuality "1"]
[TimeControl "40/5400+30:1800+30"]

1. d4 {[%emt 0:00:00]} Nf6 {[%emt 0:00:00]} 2. Bf4 {[%emt 0:00:00]} b5 {[%emt 0:01:29]} 3. e3 {[%emt 0:00:06]} a6 {[%emt 0:00:13]} 4. Nd2 {[%emt 0:01:09]} Bb7 {[%emt 0:00:38]} 5. h3 {[%emt 0:00:23]} e6 {[%emt 0:00:49]} 6. Ngf3 {[%emt 0:00:09]} Be7 {[%emt 0:01:26]} 7. Be2 {[%emt 0:01:38]} O-O {[%emt 0:00:42]} 8. O-O {[%emt 0:01:14]} c5 {[%emt 0:00:38]} 9. c3 {[%emt 0:00:32]} Qb6 {[%emt 0:02:17]} 10. Bh2 {[%emt 0:01:45]} d6 {[%emt 0:02:44]} 11. a4 {[%emt 0:01:42]} Nbd7 {[%emt 0:02:21]} 12. Qb3 {[%emt 0:03:14]} c4 {[%emt 0:07:47]} 13. Qc2 {[%emt 0:00:44]} d5 {[%emt 0:00:44]} 14. b4 {[%emt 0:13:20]} a5 {[%emt 0:06:04]} 15. bxa5 {[%emt 0:02:08]} Rxa5 {[%emt 0:00:46]} 16. axb5 {[%emt 0:01:10]} Rxb5 {[%emt 0:03:21]} 17. Rfb1 {[%emt 0:08:55]} Ra8 {[%emt 0:01:19]} 1/2-1/2

[Event "8. Arber-Schachopen 2019"]
[Site "Bodenmais"]
[Date "2019.08.01"]
[Round "6.18"]
[White "Liebold, Aaron"]
[Black "Fuchs, Michael"]
[Result "1/2-1/2"]
[ECO "B59"]
[WhiteElo "1944"]
[BlackElo "2114"]
[Annotator "NA"]
[PlyCount "50"]
[EventDate "2019.07.27"]
[EventCountry "GER"]
[SourceTitle "playchess.com"]
[Source "ChessBase"]
[SourceQuality "1"]
[TimeControl "40/5400+30:1800+30"]

1. e4 {[%emt 0:00:00]} c5 {[%emt 0:00:00]} 2. Nf3 {[%emt 0:00:00]} Nc6 {[%emt 0:00:00]} 3. d4 {[%emt 0:00:17]} cxd4 {[%emt 0:00:00]} 4. Nxd4 {[%emt 0:00:07]} Nf6 {[%emt 0:00:01]} 5. Nc3 {[%emt 0:00:31]} d6 {[%emt 0:00:06]} 6. Be2 {[%emt 0:01:28]} e5 {[%emt 0:00:29]} 7. Nb3 {[%emt 0:00:05]} Be7 {[%emt 0:00:30]} 8. Be3 {[%emt 0:00:09]} Be6 {[%emt 0:00:12]} 9. Qd2 {[%emt 0:00:37]} O-O {[%emt 0:01:32]} 10. Rd1 {[%emt 0:03:50]} a6 {[%emt 0:03:54]} 11. a4 {[%emt 0:02:36]} Na5 {[%emt 0:11:35]} 12. Nxa5 {[%emt 0:02:50]} Qxa5 {[%emt 0:01:24]} 13. O-O {[%emt 0:00:53]} Kh8 {[%emt 0:03:28]} 14. f3 {[%emt 0:03:41]} Rfd8 {[%emt 0:04:08]} 15. Nd5 {[%emt 0:06:44]} Qxd2 {[%emt 0:00:18]} 16. Rxd2 {[%emt 0:01:02]} Nxd5 {[%emt 0:00:05]} 17. exd5 {[%emt 0:00:24]} Bd7 {[%emt 0:00:14]} 18. a5 {[%emt 0:05:10]} h6 {[%emt 0:04:17]} 19. c4 {[%emt 0:02:28]} Bg5 {[%emt 0:02:05]} 20. f4 {[%emt 0:01:35]} exf4 {[%emt 0:00:59]} 21. Bxf4 {[%emt 0:00:09]} Bxf4 {[%emt 0:01:39]} 22. Rxf4 {[%emt 0:01:11]} f5 {[%emt 0:00:11]} 23. Bd3 {[%emt 0:03:23]} g6 24. Rf1 {[%emt 0:23:47]} Kg7 {[%emt 0:05:28]} 25. b4 {[%emt 0:02:28]} Re8 {[%emt 0:01:13]} 1/2-1/2

[Event "8. Arber-Schachopen 2019"]
[Site "Bodenmais"]
[Date "2019.08.01"]
[Round "6.19"]
[White "Schmahl, Stephan"]
[Black "Meixner, Torsten"]
[Result "1-0"]
[ECO "E06"]
[WhiteElo "2101"]
[BlackElo "1881"]
[Annotator "NA"]
[PlyCount "63"]
[EventDate "2019.07.27"]
[EventCountry "GER"]
[SourceTitle "playchess.com"]
[Source "ChessBase"]
[SourceQuality "1"]
[TimeControl "40/5400+30:1800+30"]

1. d4 {[%emt 0:00:00]} d5 {[%emt 0:00:00]} 2. c4 {[%emt 0:00:00]} e6 {[%emt 0:00:00]} 3. Nf3 {[%emt 0:00:00]} Nf6 {[%emt 0:00:00]} 4. g3 {[%emt 0:00:00]} Be7 {[%emt 0:00:05]} 5. Bg2 {[%emt 0:00:00]} O-O {[%emt 0:00:13]} 6. O-O {[%emt 0:00:18]} dxc4 {[%emt 0:00:22]} 7. Qc2 {[%emt 0:03:49]} a6 {[%emt 0:00:31]} 8. Qxc4 {[%emt 0:01:56]} b5 {[%emt 0:02:02]} 9. Qc2 {[%emt 0:00:05]} Bb7 {[%emt 0:00:05]} 10. Bg5 {[%emt 0:07:09]} Nbd7 {[%emt 0:02:23]} 11. Rd1 {[%emt 0:10:01]} h6 {[%emt 0:00:51]} 12. Bxf6 {[%emt 0:01:44]} Nxf6 {[%emt 0:00:37]} 13. Nc3 {[%emt 0:04:39]} Bb4 {[%emt 0:03:50]} 14. Rac1 {[%emt 0:04:30]} Rc8 {[%emt 0:01:11]} 15. a3 {[%emt 0:02:53]} Ba5 {[%emt 0:00:58]} 16. b4 {[%emt 0:21:51]} Bb6 {[%emt 0:00:42]} 17. e3 {[%emt 0:00:03]} Qe7 {[%emt 0:02:52]} 18. Ne5 {[%emt 0:01:37]} Bxg2 {[%emt 0:04:04]} 19. Kxg2 {[%emt 0:00:04]} Nd7 {[%emt 0:01:50]} 20. Nc6 {[%emt 0:02:35]} Qe8 {[%emt 0:01:18]} 21. Qe4 {[%emt 0:11:14]} f5 {[%emt 0:01:47]} 22. Qf3 {[%emt 0:03:22]} e5 {[%emt 0:00:51]} 23. Qd5+ {[%emt 0:02:50]} Kh8 {[%emt 0:00:53]} 24. dxe5 {[%emt 0:00:36]} Nb8 {[%emt 0:00:38]} 25. Ne2 {[%emt 0:02:44]} Nxc6 {[%emt 0:00:58]} 26. Rxc6 {[%emt 0:00:04]} Rd8 {[%emt 0:00:19]} 27. Qxd8 {[%emt 0:00:58]} Qxc6+ {[%emt 0:00:35]} 28. Qd5 {[%emt 0:00:10]} Qc2 {[%emt 0:01:30]} 29. Nf4 {[%emt 0:02:47]} Kh7 {[%emt 0:01:18]} 30. Rd2 {[%emt 0:00:51]} Qc1 {[%emt 0:00:53]} 31. e6 {[%emt 0:02:10]} Qb1 {[%emt 0:00:54]} 32. Rd3 {[%emt 0:01:51]} 1-0

[Event "8. Arber-Schachopen 2019"]
[Site "Bodenmais"]
[Date "2019.08.01"]
[Round "6.20"]
[White "Weisheit, Erik"]
[Black "Jergler, Karl-Heinz"]
[Result "1/2-1/2"]
[ECO "B36"]
[WhiteElo "1862"]
[BlackElo "2094"]
[Annotator "NA"]
[PlyCount "80"]
[EventDate "2019.07.27"]
[EventCountry "GER"]
[SourceTitle "playchess.com"]
[Source "ChessBase"]
[SourceQuality "1"]
[TimeControl "40/5400+30:1800+30"]

1. e4 {[%emt 0:00:00]} c5 {[%emt 0:00:00]} 2. Nf3 {[%emt 0:00:35]} Nc6 {[%emt 0:00:00]} 3. d4 {[%emt 0:00:07]} cxd4 {[%emt 0:00:00]} 4. Nxd4 {[%emt 0:00:05]} g6 {[%emt 0:00:00]} 5. c4 {[%emt 0:01:39]} Nf6 {[%emt 0:00:50]} 6. Nc3 {[%emt 0:00:33]} d6 {[%emt 0:00:06]} 7. f3 {[%emt 0:00:30]} Nxd4 {[%emt 0:00:06]} 8. Qxd4 {[%emt 0:00:09]} Bg7 {[%emt 0:00:05]} 9. Be3 {[%emt 0:00:07]} O-O {[%emt 0:00:06]} 10. Qd2 {[%emt 0:00:04]} Be6 {[%emt 0:00:09]} 11. Bd3 {[%emt 0:00:29]} a6 {[%emt 0:00:30]} 12. Rc1 {[%emt 0:01:41]} Rc8 {[%emt 0:00:08]} 13. b3 {[%emt 0:00:13]} b5 {[%emt 0:00:36]} 14. cxb5 {[%emt 0:07:30]} axb5 {[%emt 0:00:17]} 15. Nxb5 {[%emt 0:07:08]} Rxc1+ {[%emt 0:00:54]} 16. Qxc1 {[%emt 0:00:58]} Qa5+ {[%emt 0:00:05]} 17. Qd2 {[%emt 0:02:11]} Ra8 {[%emt 0:00:24]} 18. Qxa5 {[%emt 0:15:09]} Rxa5 {[%emt 0:00:19]} 19. Nc3 {[%emt 0:02:42]} Nd7 {[%emt 0:11:22]} 20. Na4 {[%emt 0:02:29]} Nc5 {[%emt 0:00:12]} 21. Nxc5 {[%emt 0:02:30]} dxc5 {[%emt 0:01:05]} 22. O-O {[%emt 0:03:51]} Rxa2 {[%emt 0:02:20]} 23. Bxc5 {[%emt 0:00:34]} Bxb3 {[%emt 0:00:53]} 24. Bxe7 {[%emt 0:00:37]} Bd4+ {[%emt 0:00:57]} 25. Kh1 {[%emt 0:00:07]} Rd2 {[%emt 0:22:38]} 26. Bb5 {[%emt 0:04:22]} Kg7 {[%emt 0:04:28]} 27. Bg5 {[%emt 0:03:09]} Ra2 {[%emt 0:03:31]} 28. Bf4 {[%emt 0:00:33]} f6 {[%emt 0:03:57]} 29. h4 {[%emt 0:01:08]} h5 {[%emt 0:01:30]} 30. Rc1 {[%emt 0:01:20]} Ra1 {[%emt 0:00:35]} 31. Rxa1 {[%emt 0:00:54]} Bxa1 {[%emt 0:00:07]} 32. Be3 {[%emt 0:01:00]} Bc3 {[%emt 0:01:08]} 33. Kg1 {[%emt 0:01:03]} Bc2 {[%emt 0:00:40]} 34. Kf2 {[%emt 0:00:16]} Bb1 {[%emt 0:12:55]} 35. Ke2 {[%emt 0:01:51]} Bc2 {[%emt 0:00:26]} 36. Bc6 {[%emt 0:01:21]} Bb3 {[%emt 0:02:48]} 37. Bd5 {[%emt 0:00:42]} Ba4 {[%emt 0:00:10]} 38. Kd3 {[%emt 0:00:18]} Be1 {[%emt 0:00:08]} 39. f4 {[%emt 0:02:24]} Bxh4 {[%emt 0:01:48]} 40. e5 {[%emt 0:01:13]} Bb5+ {[%emt 0:01:23]} 1/2-1/2

[Event "8. Arber-Schachopen 2019"]
[Site "Bodenmais"]
[Date "2019.08.01"]
[Round "6.21"]
[White "Heiduk, Christoph"]
[Black "Titz, Heimo"]
[Result "1-0"]
[ECO "E20"]
[WhiteElo "1870"]
[BlackElo "2048"]
[Annotator "NA"]
[PlyCount "65"]
[EventDate "2019.07.27"]
[EventCountry "GER"]
[SourceTitle "playchess.com"]
[Source "ChessBase"]
[SourceQuality "1"]
[TimeControl "40/5400+30:1800+30"]

1. d4 {[%emt 0:00:00]} Nf6 {[%emt 0:00:00]} 2. c4 {[%emt 0:00:00]} e6 {[%emt 0:00:18]} 3. Nc3 {[%emt 0:00:00]} Bb4 {[%emt 0:01:04]} 4. f3 {[%emt 0:00:23]} c5 {[%emt 0:02:47]} 5. d5 {[%emt 0:00:37]} exd5 {[%emt 0:00:55]} 6. cxd5 {[%emt 0:00:17]} d6 {[%emt 0:02:06]} 7. e4 {[%emt 0:01:00]} Nbd7 {[%emt 0:02:45]} 8. Nge2 {[%emt 0:04:36]} O-O {[%emt 0:02:03]} 9. Ng3 {[%emt 0:00:22]} Re8 {[%emt 0:15:57]} 10. Be2 {[%emt 0:01:31]} a6 {[%emt 0:01:55]} 11. a4 {[%emt 0:05:16]} Rb8 {[%emt 0:02:36]} 12. O-O {[%emt 0:02:12]} b5 {[%emt 0:21:55]} 13. axb5 {[%emt 0:21:37]} Bxc3 {[%emt 0:00:11]} 14. bxc3 {[%emt 0:00:04]} axb5 {[%emt 0:00:31]} 15. Qb3 {[%emt 0:06:18]} c4 {[%emt 0:07:28]} 16. Qb4 {[%emt 0:01:29]} Qb6+ {[%emt 0:01:21]} 17. Kh1 {[%emt 0:00:02]} Nxd5 {[%emt 0:01:33]} 18. exd5 {[%emt 0:00:38]} Re5 {[%emt 0:01:04]} 19. Bf4 {[%emt 0:04:21]} Rxd5 {[%emt 0:00:30]} 20. Rad1 {[%emt 0:00:16]} Nf6 {[%emt 0:01:17]} 21. Bxd6 {[%emt 0:01:26]} Rb7 {[%emt 0:01:39]} 22. Ne4 {[%emt 0:02:52]} Nxe4 {[%emt 0:01:17]} 23. fxe4 {[%emt 0:00:05]} Rxd1 24. Rxd1 {[%emt 0:00:12]} Rd7 {[%emt 0:04:03]} 25. Qc5 {[%emt 0:02:47]} Qa6 {[%emt 0:01:56]} 26. Qe5 {[%emt 0:01:38]} h6 {[%emt 0:00:35]} 27. Qe8+ {[%emt 0:00:59]} Kh7 {[%emt 0:00:12]} 28. e5 {[%emt 0:00:37]} Ra7 {[%emt 0:03:02]} 29. Bf3 {[%emt 0:02:36]} Bb7 {[%emt 0:00:59]} 30. Qxf7 {[%emt 0:00:55]} Bxf3 {[%emt 0:01:22]} 31. Qf5+ {[%emt 0:00:21]} Kg8 {[%emt 0:00:39]} 32. Qxf3 {[%emt 0:00:05]} Rf7 {[%emt 0:00:38]} 33. Qd5 {[%emt 0:00:22]} 1-0

[Event "8. Arber-Schachopen 2019"]
[Site "Bodenmais"]
[Date "2019.08.01"]
[Round "6.22"]
[White "Danninger, Jannik"]
[Black "Palmi, Herbert"]
[Result "1-0"]
[ECO "B13"]
[WhiteElo "1842"]
[BlackElo "2056"]
[Annotator "NA"]
[PlyCount "125"]
[EventDate "2019.07.27"]
[EventCountry "GER"]
[SourceTitle "playchess.com"]
[Source "ChessBase"]
[SourceQuality "1"]
[TimeControl "40/5400+30:1800+30"]

1. e4 {[%emt 0:00:00]} c6 {[%emt 0:00:04]} 2. d4 {[%emt 0:00:00]} d5 {[%emt 0:00:08]} 3. exd5 {[%emt 0:00:00]} cxd5 {[%emt 0:00:04]} 4. Bd3 {[%emt 0:00:00]} Nf6 {[%emt 0:00:37]} 5. Bf4 {[%emt 0:01:01]} Nc6 {[%emt 0:00:23]} 6. c3 {[%emt 0:00:09]} e6 {[%emt 0:01:42]} 7. Nd2 {[%emt 0:02:48]} Bd6 {[%emt 0:00:23]} 8. Bxd6 {[%emt 0:01:00]} Qxd6 {[%emt 0:00:05]} 9. Ngf3 {[%emt 0:00:15]} Bd7 {[%emt 0:03:19]} 10. O-O {[%emt 0:02:46]} O-O {[%emt 0:05:59]} 11. Re1 {[%emt 0:01:33]} Qf4 {[%emt 0:04:21]} 12. h3 {[%emt 0:04:23]} Rae8 {[%emt 0:01:11]} 13. Ne5 {[%emt 0:01:47]} Bc8 {[%emt 0:00:42]} 14. Re3 {[%emt 0:03:56]} Nxe5 {[%emt 0:00:47]} 15. dxe5 {[%emt 0:00:29]} Nd7 {[%emt 0:00:13]} 16. Qh5 {[%emt 0:03:10]} g6 {[%emt 0:03:50]} 17. Qe2 {[%emt 0:01:15]} a6 {[%emt 0:01:39]} 18. Nf3 {[%emt 0:01:49]} Nc5 {[%emt 0:01:43]} 19. Nh2 {[%emt 0:03:32]} Nxd3 {[%emt 0:02:27]} 20. Rxd3 {[%emt 0:02:24]} f5 {[%emt 0:06:06]} 21. exf6 {[%emt 0:09:40]} Qxf6 {[%emt 0:03:26]} 22. Ng4 {[%emt 0:02:22]} Qg7 {[%emt 0:01:34]} 23. Qe5 {[%emt 0:02:37]} Qxe5 {[%emt 0:02:37]} 24. Nxe5 {[%emt 0:00:07]} Rf4 {[%emt 0:04:59]} 25. Re1 {[%emt 0:02:22]} Ref8 {[%emt 0:01:48]} 26. Re2 {[%emt 0:03:38]} b5 {[%emt 0:01:57]} 27. Nc6 {[%emt 0:03:46]} Kf7 {[%emt 0:03:45]} 28. Nd4 {[%emt 0:03:48]} Ke7 {[%emt 0:12:25]} 29. Rde3 {[%emt 0:01:27]} R4f6 {[%emt 0:00:26]} 30. g4 {[%emt 0:04:05]} g5 {[%emt 0:02:32]} 31. Re5 {[%emt 0:01:24]} Kd6 {[%emt 0:08:17]} 32. Rxg5 {[%emt 0:01:39]} Rg6 {[%emt 0:06:38]} 33. Rge5 {[%emt 0:01:31]} Rff6 {[%emt 0:00:29]} 34. a3 {[%emt 0:01:21]} Kc5 {[%emt 0:00:25]} 35. Kh2 {[%emt 0:01:21]} a5 {[%emt 0:00:25]} 36. Nb3+ {[%emt 0:03:23]} Kb6 {[%emt 0:00:06]} 37. Kg3 {[%emt 0:01:34]} Bd7 {[%emt 0:00:34]} 38. h4 {[%emt 0:01:18]} h6 {[%emt 0:00:17]} 39. Nd4 {[%emt 0:01:02]} Kc5 {[%emt 0:00:10]} 40. Nb3+ {[%emt 0:02:04]} Kb6 {[%emt 0:00:50]} 41. f3 {[%emt 0:30:15]} b4 {[%emt 0:33:40]} 42. axb4 {[%emt 0:01:56]} axb4 {[%emt 0:00:05]} 43. Nd4 {[%emt 0:00:11]} Kc5 {[%emt 0:00:12]} 44. h5 {[%emt 0:00:47]} Rg8 {[%emt 0:02:06]} 45. Nxe6+ {[%emt 0:02:47]} Kc4 {[%emt 0:01:10]} 46. cxb4 {[%emt 0:01:38]} d4 {[%emt 0:00:10]} 47. Nc5 {[%emt 0:03:30]} Bc6 {[%emt 0:01:01]} 48. f4 {[%emt 0:05:02]} Kxb4 {[%emt 0:01:06]} 49. Rd2 {[%emt 0:00:52]} Kc4 {[%emt 0:02:44]} 50. b3+ {[%emt 0:00:27]} Kc3 {[%emt 0:01:32]} 51. Rd3+ {[%emt 0:00:34]} Kb4 {[%emt 0:00:25]} 52. Rxd4+ {[%emt 0:00:27]} Kc3 {[%emt 0:00:48]} 53. Rc4+ {[%emt 0:03:50]} Kd2 {[%emt 0:00:25]} 54. b4 {[%emt 0:01:33]} Ra8 {[%emt 0:01:20]} 55. Nb3+ {[%emt 0:02:35]} Kd3 {[%emt 0:00:23]} 56. Na5 {[%emt 0:02:39]} Ba4 {[%emt 0:02:02]} 57. Rd5+ {[%emt 0:01:53]} Ke3 {[%emt 0:00:28]} 58. Rcd4 {[%emt 0:02:40]} Raf8 {[%emt 0:02:21]} 59. Nc4+ {[%emt 0:01:02]} Ke2 {[%emt 0:00:06]} 60. Re5+ {[%emt 0:01:46]} Kf1 {[%emt 0:00:17]} 61. Ne3+ {[%emt 0:00:25]} Kg1 {[%emt 0:00:17]} 62. Nf5 {[%emt 0:00:44]} Kf1 {[%emt 0:01:04]} 63. Rde4 {[%emt 0:00:21]} 1-0